[Event "Titled Tuesday Blitz April 4 Late 2023"]
[White "Schuster, Karsten"]
[Black "Pires, Marcos Vinicius Torsani"]
[WhiteFideId "4611071"]
[BlackFideId "2118939"]
[WhiteElo "2294"]
[BlackElo "2273"]
[Result "1/2-1/2"]
[Round "11"]
[TimeControl "180+2"]
[Date "2023.04.04"]
[WhiteClock "0:00:55"]
[BlackClock "0:01:01"]

1. d4 {[%clk 0:03:00]}  Nf6 {[%clk 0:02:59]} 2. c4 {[%clk 0:03:01]}  g6 {[%clk 0:02:59]} 3. Nc3 {[%clk 0:03:01]}  Bg7 {[%clk 0:02:59]} 4. e4 {[%clk 0:03:01]}  d6 {[%clk 0:03:00]} 5. Be2 {[%clk 0:03:02]}  O-O {[%clk 0:03:00]} 6. Bg5 {[%clk 0:03:02]}  c5 {[%clk 0:03:00]} 7. d5 {[%clk 0:03:02]}  e6 {[%clk 0:03:00]} 8. Qd2 {[%clk 0:03:02]}  exd5 {[%clk 0:03:00]} 9. exd5 {[%clk 0:03:03]}  Re8 {[%clk 0:03:00]} 10. Nf3 {[%clk 0:03:03]}  Bg4 {[%clk 0:02:56]} 11. O-O {[%clk 0:03:03]}  Nbd7 {[%clk 0:02:54]} 12. h3 {[%clk 0:03:02]}  Bxf3 {[%clk 0:02:55]} 13. Bxf3 {[%clk 0:03:03]}  Ne5 {[%clk 0:02:54]} 14. Be2 {[%clk 0:03:04]}  Qa5 {[%clk 0:02:48]} 15. f4 {[%clk 0:03:02]}  Ned7 {[%clk 0:02:45]} 16. Bd3 {[%clk 0:03:02]}  Nh5 {[%clk 0:02:19]} 17. Rfe1 {[%clk 0:02:53]}  Bd4+ {[%clk 0:02:19]} 18. Kh2 {[%clk 0:02:52]}  a6 {[%clk 0:02:07]} 19. a4 {[%clk 0:02:37]}  Qb4 {[%clk 0:02:02]} 20. g4 {[%clk 0:02:27]}  Nhf6 {[%clk 0:01:56]} 21. f5 {[%clk 0:02:26]}  Ne5 {[%clk 0:01:48]} 22. Be2 {[%clk 0:02:19]}  Nxc4 {[%clk 0:01:43]} 23. Bxc4 {[%clk 0:02:12]}  Qxc4 {[%clk 0:01:44]} 24. fxg6 {[%clk 0:02:04]}  fxg6 {[%clk 0:01:44]} 25. Rxe8+ {[%clk 0:01:56]}  Rxe8 {[%clk 0:01:43]} 26. Re1 {[%clk 0:01:56]}  Rxe1 {[%clk 0:01:39]} 27. Qxe1 {[%clk 0:01:55]}  Be5+ {[%clk 0:01:39]} 28. Kg2 {[%clk 0:01:50]}  Nxd5 {[%clk 0:01:39]} 29. Ne4 {[%clk 0:01:33]}  Qd3 {[%clk 0:01:30]} 30. Bc1 {[%clk 0:01:14]}  Bf4 {[%clk 0:01:24]} 31. Nf6+ {[%clk 0:01:08]}  Nxf6 {[%clk 0:01:24]} 32. Qe6+ {[%clk 0:01:05]}  Kg7 {[%clk 0:01:20]} 33. Qe7+ {[%clk 0:01:01]}  Kg8 {[%clk 0:01:18]} 34. Qe6+ {[%clk 0:00:55]}  Kg7 {[%clk 0:01:14]} 35. Qe7+ {[%clk 0:00:56]}  Kg8 {[%clk 0:01:01]} 36. Qe6+ {[%clk 0:00:55]} 1/2-1/2


[Site "https://www.chess.com"]

[Event "Titled Tuesday Blitz April 4 Late 2023"]
[White "lluiss"]
[Black "Vaglio Munoz, Jaime"]
[BlackFideId "6500145"]
[WhiteElo "2272"]
[BlackElo "2199"]
[Result "0-1"]
[Round "11"]
[TimeControl "180+2"]
[Date "2023.04.04"]
[WhiteClock "0:00:56"]
[BlackClock "0:01:42"]

1. c4 {[%clk 0:03:00]}  c6 {[%clk 0:02:57]} 2. d4 {[%clk 0:03:00]}  b5 {[%clk 0:02:57]} 3. e4 {[%clk 0:02:56]}  bxc4 {[%clk 0:02:56]} 4. Bxc4 {[%clk 0:02:55]}  d5 {[%clk 0:02:57]} 5. exd5 {[%clk 0:02:47]}  cxd5 {[%clk 0:02:58]} 6. Bb5+ {[%clk 0:02:45]}  Bd7 {[%clk 0:02:57]} 7. Be2 {[%clk 0:02:40]}  Nf6 {[%clk 0:02:50]} 8. Nf3 {[%clk 0:02:39]}  g6 {[%clk 0:02:50]} 9. O-O {[%clk 0:02:39]}  Bg7 {[%clk 0:02:50]} 10. Nc3 {[%clk 0:02:39]}  O-O {[%clk 0:02:49]} 11. Bf4 {[%clk 0:02:38]}  Bg4 {[%clk 0:02:49]} 12. h3 {[%clk 0:02:37]}  Bxf3 {[%clk 0:02:48]} 13. Bxf3 {[%clk 0:02:37]}  e6 {[%clk 0:02:48]} 14. Nb5 {[%clk 0:02:31]}  Nc6 {[%clk 0:02:48]} 15. Rc1 {[%clk 0:02:26]}  Qb6 {[%clk 0:02:46]} 16. Be2 {[%clk 0:02:03]}  a6 {[%clk 0:02:44]} 17. Nc7 {[%clk 0:01:57]}  Ra7 {[%clk 0:02:29]} 18. Qc2 {[%clk 0:01:57]}  Nxd4 {[%clk 0:02:28]} 19. Be3 {[%clk 0:01:33]}  Nxe2+ {[%clk 0:02:20]} 20. Qxe2 {[%clk 0:01:33]}  d4 {[%clk 0:02:20]} 21. Bf4 {[%clk 0:01:31]}  Rb7 {[%clk 0:02:02]} 22. b3 {[%clk 0:01:26]}  Nh5 {[%clk 0:02:00]} 23. Bh2 {[%clk 0:01:22]}  Bh6 {[%clk 0:01:57]} 24. Rc4 {[%clk 0:01:15]}  Nf4 {[%clk 0:01:50]} 25. Qe5 {[%clk 0:00:58]}  f6 {[%clk 0:01:44]} 26. Qxe6+ {[%clk 0:00:56]}  Nxe6 {[%clk 0:01:42]} 0-1


[Site "https://www.chess.com"]

[Event "Titled Tuesday Blitz April 4 Late 2023"]
[White "ArchibaldCerveza29"]
[Black "Georg, Heinz"]
[BlackFideId "4607295"]
[WhiteElo "2421"]
[BlackElo "2262"]
[Result "1-0"]
[Round "11"]
[TimeControl "180+2"]
[Date "2023.04.04"]
[WhiteClock "0:01:10"]
[BlackClock "0:00:47"]

1. e4 {[%clk 0:03:00]}  e5 {[%clk 0:02:59]} 2. Nf3 {[%clk 0:03:01]}  Nc6 {[%clk 0:02:59]} 3. d4 {[%clk 0:03:01]}  exd4 {[%clk 0:02:59]} 4. Bc4 {[%clk 0:03:02]}  Bc5 {[%clk 0:02:58]} 5. O-O {[%clk 0:03:02]}  d6 {[%clk 0:02:58]} 6. c3 {[%clk 0:02:59]}  dxc3 {[%clk 0:02:57]} 7. Nxc3 {[%clk 0:02:59]}  Nf6 {[%clk 0:02:58]} 8. a3 {[%clk 0:02:56]}  a5 {[%clk 0:02:56]} 9. Bg5 {[%clk 0:02:49]}  h6 {[%clk 0:02:54]} 10. Bh4 {[%clk 0:02:50]}  g5 {[%clk 0:02:54]} 11. Nxg5 {[%clk 0:02:43]}  hxg5 {[%clk 0:02:53]} 12. Bxg5 {[%clk 0:02:44]}  Bd4 {[%clk 0:02:49]} 13. Nd5 {[%clk 0:02:41]}  Be6 {[%clk 0:02:43]} 14. Qf3 {[%clk 0:02:17]}  Bxd5 {[%clk 0:02:34]} 15. exd5 {[%clk 0:02:17]}  Be5 {[%clk 0:02:12]} 16. Rfe1 {[%clk 0:02:06]}  Kf8 {[%clk 0:01:27]} 17. dxc6 {[%clk 0:02:03]}  Bxh2+ {[%clk 0:01:27]} 18. Kf1 {[%clk 0:02:03]}  Be5 {[%clk 0:01:26]} 19. Rxe5 {[%clk 0:01:33]}  Rh1+ {[%clk 0:01:14]} 20. Ke2 {[%clk 0:01:33]}  Rxa1 {[%clk 0:01:14]} 21. Bxf6 {[%clk 0:01:30]}  Qe8 {[%clk 0:00:47]} 22. Be7+ {[%clk 0:01:10]} 1-0


[Site "https://www.chess.com"]

[Event "Titled Tuesday Blitz April 4 Late 2023"]
[White "Gerbelli Neto, Eduardo"]
[Black "mjelcic"]
[WhiteFideId "2103281"]
[WhiteElo "2178"]
[BlackElo "2240"]
[Result "1-0"]
[Round "11"]
[TimeControl "180+2"]
[Date "2023.04.04"]
[WhiteClock "0:00:18"]
[BlackClock "0:00:02"]

1. e4 {[%clk 0:03:00]}  c5 {[%clk 0:02:59]} 2. Nc3 {[%clk 0:03:00]}  g6 {[%clk 0:02:59]} 3. f4 {[%clk 0:03:00]}  Nc6 {[%clk 0:02:59]} 4. Nf3 {[%clk 0:03:00]}  Bg7 {[%clk 0:02:58]} 5. Bc4 {[%clk 0:03:01]}  e6 {[%clk 0:02:59]} 6. f5 {[%clk 0:03:01]}  Nge7 {[%clk 0:02:50]} 7. fxe6 {[%clk 0:03:01]}  fxe6 {[%clk 0:02:48]} 8. d3 {[%clk 0:03:01]}  O-O {[%clk 0:02:48]} 9. O-O {[%clk 0:03:01]}  d5 {[%clk 0:02:48]} 10. Bb3 {[%clk 0:03:02]}  a6 {[%clk 0:02:12]} 11. Qe1 {[%clk 0:02:59]}  Nd4 {[%clk 0:02:09]} 12. Bg5 {[%clk 0:02:55]}  Nxf3+ {[%clk 0:02:07]} 13. Rxf3 {[%clk 0:02:51]}  Rxf3 {[%clk 0:02:06]} 14. gxf3 {[%clk 0:02:52]}  Qd6 {[%clk 0:01:58]} 15. Bxe7 {[%clk 0:02:51]}  Qxe7 {[%clk 0:01:56]} 16. exd5 {[%clk 0:02:51]}  Qg5+ {[%clk 0:01:56]} 17. Qg3 {[%clk 0:02:46]}  Bd4+ {[%clk 0:01:56]} 18. Kg2 {[%clk 0:02:45]}  Qd2+ {[%clk 0:01:55]} 19. Kh1 {[%clk 0:02:43]}  b5 {[%clk 0:01:26]} 20. Ne4 {[%clk 0:02:33]}  Qh6 {[%clk 0:01:12]} 21. dxe6 {[%clk 0:02:33]}  c4 {[%clk 0:01:12]} 22. dxc4 {[%clk 0:02:27]}  Bxe6 {[%clk 0:01:12]} 23. cxb5 {[%clk 0:02:05]}  Bxb3 {[%clk 0:01:11]} 24. axb3 {[%clk 0:02:05]}  Bxb2 {[%clk 0:01:10]} 25. Rxa6 {[%clk 0:02:00]}  Rf8 {[%clk 0:01:03]} 26. Rc6 {[%clk 0:00:57]}  Qc1+ {[%clk 0:01:01]} 27. Kg2 {[%clk 0:00:57]}  Qe3 {[%clk 0:00:57]} 28. Qf2 {[%clk 0:00:56]}  Qf4 {[%clk 0:00:54]} 29. b6 {[%clk 0:00:49]}  Bd4 {[%clk 0:00:38]} 30. Qe2 {[%clk 0:00:47]}  Be5 {[%clk 0:00:35]} 31. Ng3 {[%clk 0:00:47]}  h5 {[%clk 0:00:31]} 32. b7 {[%clk 0:00:44]}  h4 {[%clk 0:00:31]} 33. Nf1 {[%clk 0:00:44]}  Qg5+ {[%clk 0:00:18]} 34. Kh1 {[%clk 0:00:42]}  Bd4 {[%clk 0:00:18]} 35. Qg2 {[%clk 0:00:39]}  Qd5 {[%clk 0:00:12]} 36. Rxg6+ {[%clk 0:00:38]}  Kh8 {[%clk 0:00:11]} 37. Rg5 {[%clk 0:00:38]}  Qxf3 {[%clk 0:00:09]} 38. Rg8+ {[%clk 0:00:38]}  Kh7 {[%clk 0:00:08]} 39. Qxf3 {[%clk 0:00:34]}  Rxf3 {[%clk 0:00:07]} 40. b8=Q {[%clk 0:00:32]}  Rxf1+ {[%clk 0:00:06]} 41. Kg2 {[%clk 0:00:33]}  Rg1+ {[%clk 0:00:07]} 42. Kf3 {[%clk 0:00:33]}  Rxg8 {[%clk 0:00:06]} 43. Qc7+ {[%clk 0:00:31]}  Bg7 {[%clk 0:00:06]} 44. b4 {[%clk 0:00:30]}  Rf8+ {[%clk 0:00:06]} 45. Kg4 {[%clk 0:00:29]}  Kg6 {[%clk 0:00:05]} 46. Qd6+ {[%clk 0:00:25]}  Bf6 {[%clk 0:00:06]} 47. Qd3+ {[%clk 0:00:24]}  Kf7 {[%clk 0:00:05]} 48. Qh7+ {[%clk 0:00:23]}  Ke6 {[%clk 0:00:05]} 49. Qe4+ {[%clk 0:00:23]}  Kf7 {[%clk 0:00:05]} 50. b5 {[%clk 0:00:23]}  Rg8+ {[%clk 0:00:04]} 51. Kf3 {[%clk 0:00:23]}  Re8 {[%clk 0:00:04]} 52. Qd5+ {[%clk 0:00:21]}  Kg6 {[%clk 0:00:04]} 53. b6 {[%clk 0:00:21]}  Re5 {[%clk 0:00:03]} 54. Qg8+ {[%clk 0:00:19]}  Kf5 {[%clk 0:00:04]} 55. b7 {[%clk 0:00:20]}  Bg5 {[%clk 0:00:02]} 56. Qxg5+ {[%clk 0:00:18]}  Kxg5 {[%clk 0:00:02]} 57. b8=Q {[%clk 0:00:19]}  Rf5+ {[%clk 0:00:02]} 58. Ke4 {[%clk 0:00:18]}  Rf4+ {[%clk 0:00:02]} 59. Qxf4+ {[%clk 0:00:18]} 1-0


[Site "https://www.chess.com"]

[Event "Titled Tuesday Blitz April 4 Late 2023"]
[White "Vifleemskaia, Svetlana"]
[Black "Kujawski, Adam"]
[WhiteFideId "4129490"]
[BlackFideId "1100920"]
[WhiteElo "1930"]
[BlackElo "2054"]
[Result "1-0"]
[Round "11"]
[TimeControl "180+2"]
[Date "2023.04.04"]
[WhiteClock "0:01:01"]
[BlackClock "0:00:03"]

1. d4 {[%clk 0:03:00]}  Nf6 {[%clk 0:02:47]} 2. c4 {[%clk 0:03:00]}  e6 {[%clk 0:02:47]} 3. Nc3 {[%clk 0:03:00]}  Bb4 {[%clk 0:02:47]} 4. e3 {[%clk 0:03:00]}  c5 {[%clk 0:02:46]} 5. Ne2 {[%clk 0:03:00]}  b6 {[%clk 0:02:46]} 6. a3 {[%clk 0:02:59]}  Ba5 {[%clk 0:02:45]} 7. Rb1 {[%clk 0:02:59]}  Na6 {[%clk 0:02:44]} 8. g3 {[%clk 0:02:58]}  Bb7 {[%clk 0:02:42]} 9. d5 {[%clk 0:02:58]}  b5 {[%clk 0:02:41]} 10. Bg2 {[%clk 0:02:56]}  bxc4 {[%clk 0:02:39]} 11. O-O {[%clk 0:02:55]}  d6 {[%clk 0:02:21]} 12. Qa4+ {[%clk 0:02:50]}  Kf8 {[%clk 0:02:05]} 13. dxe6 {[%clk 0:02:44]}  Bxg2 {[%clk 0:02:03]} 14. Kxg2 {[%clk 0:02:41]}  fxe6 {[%clk 0:01:59]} 15. Qxc4 {[%clk 0:02:39]}  Nc7 {[%clk 0:01:51]} 16. e4 {[%clk 0:02:39]}  Bb6 {[%clk 0:01:37]} 17. Nf4 {[%clk 0:02:37]}  Qe7 {[%clk 0:01:21]} 18. e5 {[%clk 0:02:23]}  dxe5 {[%clk 0:01:19]} 19. Nd3 {[%clk 0:02:23]}  Ncd5 {[%clk 0:00:59]} 20. Nxe5 {[%clk 0:02:19]}  Qb7 {[%clk 0:00:56]} 21. f3 {[%clk 0:02:09]}  Re8 {[%clk 0:00:48]} 22. Re1 {[%clk 0:02:04]}  Kg8 {[%clk 0:00:46]} 23. Ne4 {[%clk 0:01:59]}  h5 {[%clk 0:00:35]} 24. Ng5 {[%clk 0:01:51]}  h4 {[%clk 0:00:30]} 25. Ng6 {[%clk 0:01:44]}  h3+ {[%clk 0:00:22]} 26. Nxh3 {[%clk 0:01:39]}  Rh5 {[%clk 0:00:18]} 27. Nhf4 {[%clk 0:01:34]}  Nxf4+ {[%clk 0:00:17]} 28. Nxf4 {[%clk 0:01:32]}  Rf5 {[%clk 0:00:08]} 29. Rxe6 {[%clk 0:01:29]}  Kh7 {[%clk 0:00:05]} 30. Bd2 {[%clk 0:01:09]}  Rxe6 {[%clk 0:00:05]} 31. Qxe6 {[%clk 0:01:07]}  Re5 {[%clk 0:00:03]} 32. Qxe5 {[%clk 0:01:01]} 1-0


[Site "https://www.chess.com"]

[Event "Titled Tuesday Blitz April 4 Late 2023"]
[White "Antonova, Nadezhda"]
[Black "Zampronha, Wladimir Camilo"]
[WhiteFideId "14700182"]
[BlackFideId "2103087"]
[WhiteElo "1765"]
[BlackElo "2176"]
[Result "0-1"]
[Round "11"]
[TimeControl "180+2"]
[Date "2023.04.04"]
[WhiteClock "0:00:01"]
[BlackClock "0:00:49"]

1. Nf3 {[%clk 0:02:58]}  Nf6 {[%clk 0:02:59]} 2. b3 {[%clk 0:02:58]}  d5 {[%clk 0:02:58]} 3. Bb2 {[%clk 0:02:59]}  c5 {[%clk 0:02:57]} 4. e3 {[%clk 0:02:59]}  a6 {[%clk 0:02:57]} 5. c4 {[%clk 0:02:56]}  Nc6 {[%clk 0:02:57]} 6. cxd5 {[%clk 0:02:46]}  Nxd5 {[%clk 0:02:57]} 7. Nc3 {[%clk 0:02:46]}  Ndb4 {[%clk 0:02:57]} 8. Qb1 {[%clk 0:02:32]}  Bg4 {[%clk 0:02:56]} 9. a3 {[%clk 0:02:28]}  Bxf3 {[%clk 0:02:56]} 10. gxf3 {[%clk 0:02:27]}  Nd5 {[%clk 0:02:56]} 11. Ne4 {[%clk 0:02:22]}  e6 {[%clk 0:02:56]} 12. Qc2 {[%clk 0:02:13]}  Rc8 {[%clk 0:02:30]} 13. Rc1 {[%clk 0:01:59]}  Nb8 {[%clk 0:02:05]} 14. d4 {[%clk 0:01:33]}  Nd7 {[%clk 0:02:06]} 15. dxc5 {[%clk 0:01:19]}  Nxc5 {[%clk 0:02:03]} 16. b4 {[%clk 0:01:14]}  Nxe4 {[%clk 0:01:27]} 17. Qxc8 {[%clk 0:01:13]}  Ng5 {[%clk 0:01:23]} 18. Qxd8+ {[%clk 0:01:04]}  Kxd8 {[%clk 0:01:24]} 19. f4 {[%clk 0:00:55]}  Ne4 {[%clk 0:01:19]} 20. Bg2 {[%clk 0:00:51]}  f5 {[%clk 0:01:19]} 21. Ke2 {[%clk 0:00:40]}  Be7 {[%clk 0:01:16]} 22. Bxe4 {[%clk 0:00:29]}  fxe4 {[%clk 0:01:16]} 23. Bxg7 {[%clk 0:00:29]}  Rg8 {[%clk 0:01:16]} 24. Be5 {[%clk 0:00:28]}  a5 {[%clk 0:01:04]} 25. Rhd1 {[%clk 0:00:24]}  axb4 {[%clk 0:01:03]} 26. axb4 {[%clk 0:00:24]}  Bxb4 {[%clk 0:01:02]} 27. f5 {[%clk 0:00:23]}  Ke7 {[%clk 0:01:01]} 28. fxe6 {[%clk 0:00:18]}  Kxe6 {[%clk 0:01:01]} 29. Bg3 {[%clk 0:00:17]}  Nc3+ {[%clk 0:00:59]} 30. Kf1 {[%clk 0:00:16]}  Nxd1 {[%clk 0:00:59]} 31. Rxd1 {[%clk 0:00:16]}  Bc5 {[%clk 0:00:53]} 32. Rb1 {[%clk 0:00:14]}  b6 {[%clk 0:00:53]} 33. Ke2 {[%clk 0:00:13]}  Rd8 {[%clk 0:00:52]} 34. Rb3 {[%clk 0:00:10]}  Ra8 {[%clk 0:00:52]} 35. Rb2 {[%clk 0:00:10]}  Ra3 {[%clk 0:00:52]} 36. Rc2 {[%clk 0:00:08]}  Kd5 {[%clk 0:00:53]} 37. Rd2+ {[%clk 0:00:08]}  Kc6 {[%clk 0:00:53]} 38. Bf4 {[%clk 0:00:07]}  b5 {[%clk 0:00:52]} 39. f3 {[%clk 0:00:05]}  exf3+ {[%clk 0:00:50]} 40. Kxf3 {[%clk 0:00:05]}  b4 {[%clk 0:00:51]} 41. Ke4 {[%clk 0:00:05]}  b3 {[%clk 0:00:52]} 42. Rb2 {[%clk 0:00:04]}  Kb5 {[%clk 0:00:49]} 43. Be5 {[%clk 0:00:04]}  Kc4 {[%clk 0:00:48]} 44. Bf6 {[%clk 0:00:03]}  Ra2 {[%clk 0:00:48]} 45. Be5 {[%clk 0:00:03]}  Ba3 {[%clk 0:00:48]} 46. Rb1 {[%clk 0:00:01]}  Rg2 {[%clk 0:00:49]} 0-1


[Site "https://www.chess.com"]

[Event "Titled Tuesday Blitz April 4 Late 2023"]
[White "tandercat"]
[Black "Kohler, Aran"]
[BlackFideId "1002856"]
[WhiteElo "1954"]
[BlackElo "2291"]
[Result "0-1"]
[Round "11"]
[TimeControl "180+2"]
[Date "2023.04.04"]
[WhiteClock "0:00:06"]
[BlackClock "0:02:08"]

1. d4 {[%clk 0:03:00]}  d5 {[%clk 0:02:59]} 2. c4 {[%clk 0:03:01]}  c6 {[%clk 0:02:58]} 3. cxd5 {[%clk 0:03:00]}  cxd5 {[%clk 0:02:57]} 4. Nc3 {[%clk 0:03:01]}  a6 {[%clk 0:02:56]} 5. Bf4 {[%clk 0:03:02]}  Nc6 {[%clk 0:02:55]} 6. e3 {[%clk 0:03:03]}  Nf6 {[%clk 0:02:55]} 7. Rc1 {[%clk 0:03:02]}  e6 {[%clk 0:02:53]} 8. Bd3 {[%clk 0:03:01]}  Bd6 {[%clk 0:02:53]} 9. Bxd6 {[%clk 0:03:01]}  Qxd6 {[%clk 0:02:53]} 10. f4 {[%clk 0:03:01]}  h6 {[%clk 0:02:51]} 11. Nf3 {[%clk 0:03:01]}  g5 {[%clk 0:02:46]} 12. fxg5 {[%clk 0:02:28]}  hxg5 {[%clk 0:02:46]} 13. Nxg5 {[%clk 0:01:00]}  Rxh2 {[%clk 0:02:40]} 14. Rxh2 {[%clk 0:01:00]}  Qxh2 {[%clk 0:02:32]} 15. Qf3 {[%clk 0:00:54]}  Qh4+ {[%clk 0:02:26]} 16. Ke2 {[%clk 0:00:52]}  Qxg5 {[%clk 0:02:26]} 17. Rf1 {[%clk 0:00:50]}  Ke7 {[%clk 0:02:27]} 18. Na4 {[%clk 0:00:27]}  Bd7 {[%clk 0:02:19]} 19. Nb6 {[%clk 0:00:27]}  Rf8 {[%clk 0:02:18]} 20. Nxd7 {[%clk 0:00:09]}  Nxd7 {[%clk 0:02:12]} 21. a3 {[%clk 0:00:06]}  f5 {[%clk 0:02:08]} 0-1


[Site "https://www.chess.com"]

[Event "Titled Tuesday Blitz April 4 Late 2023"]
[White "Brahami, Lamine"]
[Black "Matute Escobar, Roxanny"]
[WhiteFideId "7905637"]
[BlackFideId "3926028"]
[WhiteElo "2088"]
[BlackElo "1844"]
[Result "1-0"]
[Round "11"]
[TimeControl "180+2"]
[Date "2023.04.04"]
[WhiteClock "0:00:25"]
[BlackClock "0:00:01"]

1. d4 {[%clk 0:03:00]}  Nf6 {[%clk 0:02:59]} 2. Nf3 {[%clk 0:02:57]}  g6 {[%clk 0:03:00]} 3. e3 {[%clk 0:02:58]}  Bg7 {[%clk 0:02:59]} 4. Be2 {[%clk 0:02:54]}  c5 {[%clk 0:02:59]} 5. O-O {[%clk 0:02:55]}  cxd4 {[%clk 0:02:59]} 6. exd4 {[%clk 0:02:56]}  O-O {[%clk 0:02:59]} 7. c3 {[%clk 0:02:55]}  d6 {[%clk 0:02:59]} 8. Nbd2 {[%clk 0:02:54]}  Nc6 {[%clk 0:02:59]} 9. Nc4 {[%clk 0:02:53]}  b5 {[%clk 0:02:57]} 10. Ne3 {[%clk 0:02:52]}  a6 {[%clk 0:02:57]} 11. a4 {[%clk 0:02:50]}  bxa4 {[%clk 0:02:31]} 12. Qxa4 {[%clk 0:02:45]}  Bb7 {[%clk 0:02:30]} 13. Qb3 {[%clk 0:02:15]}  Rb8 {[%clk 0:02:25]} 14. Qc2 {[%clk 0:02:12]}  a5 {[%clk 0:02:19]} 15. Nc4 {[%clk 0:01:57]}  Rc8 {[%clk 0:01:58]} 16. Qb3 {[%clk 0:01:53]}  Ba6 {[%clk 0:01:58]} 17. Re1 {[%clk 0:01:45]}  d5 {[%clk 0:01:20]} 18. Nce5 {[%clk 0:01:38]}  Bxe2 {[%clk 0:01:19]} 19. Rxe2 {[%clk 0:01:39]}  Ne4 {[%clk 0:01:12]} 20. Nxc6 {[%clk 0:01:27]}  Rxc6 {[%clk 0:01:13]} 21. Qa4 {[%clk 0:01:26]}  Ra6 {[%clk 0:00:54]} 22. Ne5 {[%clk 0:01:01]}  Qd6 {[%clk 0:00:46]} 23. Nd3 {[%clk 0:00:55]}  Qc7 {[%clk 0:00:32]} 24. Qb5 {[%clk 0:00:50]}  Rd6 {[%clk 0:00:09]} 25. Qxa5 {[%clk 0:00:44]}  Qd7 {[%clk 0:00:09]} 26. Nc5 {[%clk 0:00:40]}  Qf5 {[%clk 0:00:09]} 27. Nxe4 {[%clk 0:00:38]}  dxe4 {[%clk 0:00:10]} 28. Be3 {[%clk 0:00:37]}  Rd5 {[%clk 0:00:10]} 29. Qa4 {[%clk 0:00:32]}  Qg4 {[%clk 0:00:10]} 30. Qd1 {[%clk 0:00:32]}  Rb8 {[%clk 0:00:09]} 31. Rd2 {[%clk 0:00:31]}  Qe6 {[%clk 0:00:08]} 32. c4 {[%clk 0:00:29]}  Rdd8 {[%clk 0:00:08]} 33. d5 {[%clk 0:00:29]}  Qf5 {[%clk 0:00:06]} 34. Rb1 {[%clk 0:00:28]}  Rdc8 {[%clk 0:00:03]} 35. c5 {[%clk 0:00:28]}  e6 {[%clk 0:00:01]} 36. d6 {[%clk 0:00:28]}  Be5 {[%clk 0:00:01]} 37. b4 {[%clk 0:00:26]}  Qh5 {[%clk 0:00:01]} 38. g3 {[%clk 0:00:25]} 1-0


[Site "https://www.chess.com"]

[Event "Titled Tuesday Blitz April 4 Late 2023"]
[White "Lock, Gavin R"]
[Black "Tarnowska, Aleksandra"]
[WhiteFideId "408646"]
[BlackFideId "1180967"]
[WhiteElo "2104"]
[BlackElo "1776"]
[Result "0-1"]
[Round "11"]
[TimeControl "180+2"]
[Date "2023.04.04"]
[WhiteClock "0:00:02"]
[BlackClock "0:00:06"]

1. e4 {[%clk 0:03:00]}  c5 {[%clk 0:02:57]} 2. Nf3 {[%clk 0:03:01]}  e6 {[%clk 0:02:58]} 3. c3 {[%clk 0:03:00]}  d5 {[%clk 0:02:58]} 4. exd5 {[%clk 0:03:01]}  Qxd5 {[%clk 0:02:58]} 5. d4 {[%clk 0:03:01]}  Nf6 {[%clk 0:02:59]} 6. Na3 {[%clk 0:03:00]}  a6 {[%clk 0:02:57]} 7. Nc4 {[%clk 0:02:58]}  Qd8 {[%clk 0:02:56]} 8. a4 {[%clk 0:02:51]}  b6 {[%clk 0:02:49]} 9. Be2 {[%clk 0:02:45]}  Bb7 {[%clk 0:02:47]} 10. O-O {[%clk 0:02:45]}  cxd4 {[%clk 0:02:44]} 11. Qxd4 {[%clk 0:02:39]}  Qxd4 {[%clk 0:02:43]} 12. Nxd4 {[%clk 0:02:40]}  Nbd7 {[%clk 0:02:41]} 13. Bf4 {[%clk 0:02:24]}  Be7 {[%clk 0:02:04]} 14. Nd6+ {[%clk 0:01:53]}  Bxd6 {[%clk 0:01:57]} 15. Bxd6 {[%clk 0:01:52]}  Ne4 {[%clk 0:01:48]} 16. Ba3 {[%clk 0:01:31]}  Ng5 {[%clk 0:01:09]} 17. Rfe1 {[%clk 0:01:25]}  h5 {[%clk 0:00:56]} 18. Bf1 {[%clk 0:00:58]}  h4 {[%clk 0:00:54]} 19. h3 {[%clk 0:00:48]}  Rh6 {[%clk 0:00:52]} 20. Nf5 {[%clk 0:00:41]}  O-O-O {[%clk 0:00:19]} 21. Nxh6 {[%clk 0:00:37]}  gxh6 {[%clk 0:00:20]} 22. Rad1 {[%clk 0:00:20]}  Rg8 {[%clk 0:00:20]} 23. Kh2 {[%clk 0:00:19]}  Nf6 {[%clk 0:00:20]} 24. Be7 {[%clk 0:00:18]}  Nfe4 {[%clk 0:00:20]} 25. Bxg5 {[%clk 0:00:11]}  Nxg5 {[%clk 0:00:21]} 26. f4 {[%clk 0:00:11]}  Ne4 {[%clk 0:00:19]} 27. Bd3 {[%clk 0:00:11]}  Nf2 {[%clk 0:00:17]} 28. Bf1 {[%clk 0:00:09]}  Nxd1 {[%clk 0:00:16]} 29. Rxd1 {[%clk 0:00:10]}  Kc7 {[%clk 0:00:12]} 30. Kg1 {[%clk 0:00:10]}  Rg3 {[%clk 0:00:11]} 31. Kf2 {[%clk 0:00:10]}  f5 {[%clk 0:00:04]} 32. Rd4 {[%clk 0:00:08]}  Bd5 {[%clk 0:00:04]} 33. c4 {[%clk 0:00:07]}  Bc6 {[%clk 0:00:04]} 34. b4 {[%clk 0:00:05]}  Bxa4 {[%clk 0:00:04]} 35. c5 {[%clk 0:00:05]}  bxc5 {[%clk 0:00:04]} 36. bxc5 {[%clk 0:00:06]}  Bb5 {[%clk 0:00:05]} 37. Bxb5 {[%clk 0:00:05]}  axb5 {[%clk 0:00:06]} 38. Rd6 {[%clk 0:00:05]}  Rc3 {[%clk 0:00:06]} 39. Rxe6 {[%clk 0:00:05]}  Rxc5 {[%clk 0:00:07]} 40. Rxh6 {[%clk 0:00:06]}  Rc2+ {[%clk 0:00:07]} 41. Kf3 {[%clk 0:00:06]}  Rc3+ {[%clk 0:00:07]} 42. Kf2 {[%clk 0:00:06]}  b4 {[%clk 0:00:07]} 43. Rxh4 {[%clk 0:00:04]}  b3 {[%clk 0:00:08]} 44. Rh7+ {[%clk 0:00:04]}  Kc8 {[%clk 0:00:07]} 45. Rh6 {[%clk 0:00:03]}  Kc7 {[%clk 0:00:06]} 46. Rh7+ {[%clk 0:00:03]}  Kb6 {[%clk 0:00:06]} 47. Rh8 {[%clk 0:00:03]}  Rc7 {[%clk 0:00:06]} 48. Rd8 {[%clk 0:00:02]}  b2 {[%clk 0:00:06]} 0-1


[Site "https://www.chess.com"]